bitfinex-derivatives/quotes_SOLF0:USTF0_20220110
["timestamp","ask_amount","ask_price","bid_price","bid_amount"]
[1641798912286,35.77479,143.2,143.17,1.72816058]
[1641798912687,8.11,143.2,143.17,1.72816058]
[1641798912887,4.0,143.25,143.17,1.72816058]
[1641798913089,27.66479,143.24,143.17,1.72816058]
[1641798913291,31.62069471,143.24,143.16,1.72816058]
[1641798913487,31.62069471,143.24,143.16,5.72816058]
[1641798913689,3.95590471,143.23,143.18,2.41272234]
[1641798913889,3.95590471,143.23,143.19,6.9798283]
[1641798914389,3.95590471,143.26,143.19,1.72816058]
[1641798915188,3.95590471,143.26,143.19,29.39295058]
[1641798915590,3.95590471,143.26,143.2,1.72816058]
[1641798915790,3.95590471,143.26,143.2,4.14088292]
[1641798916188,3.95590471,143.26,143.21,1.72816058]
[1641798916389,3.95590471,143.26,143.21,4.14088292]
[1641798917191,3.95590471,143.26,143.22,1.72816058]
[1641798917590,3.95590471,143.26,143.2,1.72816058]
[1641798920092,3.95590471,143.26,143.21,2.41325173]
[1641798920794,3.95590471,143.26,143.22,1.72816058]
[1641798921997,3.95590471,143.26,143.2,1.72816058]
[1641798922895,3.95590471,143.26,143.21,2.41315035]
[1641798923495,3.95590471,143.26,143.22,1.72816058]
[1641798924899,3.95590471,143.26,143.2,1.72816058]
[1641798925397,27.66479,143.23,143.2,1.72816058]
[1641798925595,36.73979,143.23,143.2,1.72816058]
[1641798925799,3.95590471,143.22,143.21,2.4131688]
[1641798926196,3.95590471,143.22,143.21,4.14132938]
[1641798926397,3.95590471,143.22,143.21,1.72816058]
[1641798926599,3.95590471,143.22,143.18,49.527]
[1641798927898,3.95590471,143.22,143.19,1.538132]
[1641798939812,3.95590471,143.22,143.18,1.538132]
[1641798940414,3.95590471,143.22,143.19,1.538132]
[1641798940914,3.95590471,143.22,143.2,1.538132]
[1641798941413,3.95590471,143.22,143.17,4.0]
[1641798941816,3.95590471,143.22,143.18,1.36565305]
[1641798949522,3.95590471,143.22,143.16,1.36565305]
[1641798950525,3.95590471,143.22,143.17,2.41717262]
[1641798951124,3.95590471,143.22,143.18,1.36565305]
[1641798952425,3.95590471,143.22,143.16,1.36565305]
[1641798953726,3.95590471,143.22,143.17,2.42154975]
[1641798954128,3.95590471,143.22,143.18,1.36565305]
[1641798954526,3.95590471,143.24,143.18,1.36565305]
[1641798954726,27.66479,143.21,143.18,1.36565305]
[1641798955428,3.95590471,143.2,143.19,2.42154975]
[1641798955728,3.95590471,143.2,143.19,3.7872028]
[1641798957132,3.95590471,143.23,143.19,3.7872028]
[1641798957334,27.66479,143.21,143.19,3.7872028]
[1641798957632,27.66479,143.21,143.2,1.36565305]
[1641798957832,27.66479,143.21,143.17,1.36565305]
[1641798958134,31.62069471,143.21,143.17,1.36565305]
[1641798958334,3.95590471,143.2,143.17,1.36565305]
[1641798958534,12.77490471,143.2,143.17,1.36565305]
[1641798959134,12.77490471,143.2,143.18,2.42283084]
[1641798959335,3.95590471,143.19,143.18,2.42283084]
[1641798959634,3.95590471,143.19,143.18,3.78848389]
[1641798959834,59.28548471,143.19,143.18,1.36565305]
[1641798960137,61.80361233,143.19,143.14,51.3209]
[1641798960336,61.80361233,143.19,143.13,14.71886497]
[1641798960535,57.84770762,143.19,143.13,14.71886497]
[1641798961135,55.32958,143.19,143.13,14.71886497]
[1641798961337,3.95717339,143.18,143.15,2.42343557]
[1641798961835,3.95717339,143.18,143.16,1.07965822]
[1641798962237,3.95717339,143.2,143.16,1.07965822]
[1641798962436,27.66479,143.19,143.16,5.822e-05]
[1641798962635,27.66479,143.19,143.15,2.42343557]
[1641798962636,6.98934125,143.17,143.07,57.99440066]
[1641798963036,6.98934125,143.17,143.06,57.99440066]
[1641798963838,6.98934125,143.17,143.04,50.8961]
[1641798964137,54.67732165,143.16,143.07,1.08117464]
[1641798964338,3.95872165,143.16,143.07,28.74596464]
[1641798964539,3.95872165,143.15,143.08,6.98543537]
[1641798964839,27.66479,143.19,143.08,6.98543537]
[1641798964840,3.95872165,143.18,143.09,1.08117464]
[1641798966142,3.95872165,143.18,143.1,6.98421567]
[1641798966543,3.95872165,143.18,143.11,1.08117464]
[1641798967043,27.66479,143.2,143.11,1.08117464]
[1641798967442,3.95872165,143.19,143.11,1.08117464]
[1641798969446,22.00729911,143.22,143.1,1.08117464]
[1641798969647,27.66479,143.18,143.1,1.08117464]
[1641798969847,27.66479,143.18,143.11,1.08117464]
[1641798970246,3.95872165,143.17,143.12,1.08117464]
[1641798970646,3.95872165,143.17,143.13,1.08117464]
[1641798971047,3.95872165,143.17,143.14,1.08117464]
[1641798971448,3.95872165,143.2,143.15,1.08117464]
[1641798972048,3.95872165,143.2,143.16,1.08117464]
[1641798972248,27.66479,143.18,143.16,1.08117464]
[1641798972447,27.66479,143.18,143.17,1.08117464]
[1641798972647,27.66479,143.18,143.09,48.1281]
[1641798972850,34.46179,143.18,143.09,48.1281]
[1641798973050,19.24223895,143.17,143.08,27.66479]
[1641798973250,19.24223895,143.17,143.06,47.6452]
[1641798973451,69.91093895,143.17,143.06,47.6452]
[1641798973853,23.20221048,143.16,143.07,0.79199431]
[1641798974252,27.66479,143.12,143.07,0.79199431]
[1641798974452,35.37579,143.12,143.07,0.79199431]
[1641798974853,3.95997153,143.11,143.07,0.79199431]
[1641798975254,3.95997153,143.11,143.06,0.79199431]
[1641798979359,27.66479,143.09,143.06,0.79199431]
[1641798980261,3.95997153,143.08,143.03,0.79199431]
[1641798980458,9.87297153,143.08,143.03,0.79199431]
[1641798981061,5.913,143.08,143.02,0.79199431]
[1641798981462,3.96017952,143.07,143.02,6.38552659]
[1641798981664,3.96017952,143.07,143.03,1.747]
[1641798981864,47.0605,143.14,143.03,2.53899431]
[1641798982064,27.66479,143.11,143.03,80.08508431]
[1641798982264,27.66479,143.11,143.04,0.79199431]
[1641798982664,3.95990818,143.1,143.04,0.79199431]
[1641798984466,3.95990818,143.13,143.04,0.79199431]
[1641798984667,27.66479,143.09,143.04,0.79199431]
[1641798985369,3.95990818,143.08,143.04,0.79199431]
[1641798985668,10.62290818,143.08,143.04,0.79199431]
[1641798986170,3.95990818,143.07,143.04,0.79199431]
[1641798986672,6.663,143.08,143.03,0.79199431]
[1641798990879,27.66479,143.09,143.03,0.79199431]
[1641798991079,47.0605,143.14,143.03,0.79199431]
[1641798991478,3.96005803,143.13,143.02,0.79199431]
[1641798991678,27.66479,143.1,143.02,0.79199431]
[1641798992381,3.96005803,143.09,143.02,0.79199431]
[1641798993078,3.96005803,143.09,143.03,14.77739247]
[1641798993281,3.96005803,143.09,143.03,16.52439247]
[1641798993679,3.96005803,143.09,143.03,44.18918247]
[1641798993881,3.96005803,143.09,143.04,0.79199431]
[1641798998584,3.96005803,143.09,143.04,25.2901076]
[1641798999286,3.96005803,143.09,143.05,0.79199431]
[1641799002591,3.96005803,143.09,143.05,15.56938678]
[1641799002792,3.96005803,143.13,143.05,15.56938678]
[1641799003192,3.96005803,143.13,143.06,0.79199431]
[1641799003393,2.52478994,143.12,143.07,14.77739247]
[1641799003794,27.66479,143.1,143.07,14.77739247]
[1641799004093,27.66479,143.1,143.08,0.79199431]
[1641799004397,3.96005803,143.09,143.08,0.79199431]
[1641799007596,3.96005803,143.09,143.07,0.79199431]
[1641799008999,3.96005803,143.09,143.06,0.79199431]
[1641799009802,27.66479,143.07,143.06,0.79199431]
[1641799010004,33.73079,143.07,143.06,0.79199431]
[1641799010405,37.69084803,143.07,143.06,0.79199431]
[1641799014208,37.69084803,143.07,143.04,0.79199431]
[1641799014707,3.96005803,143.06,143.04,0.79199431]
[1641799016008,3.96005803,143.06,143.02,0.79199431]
[1641799017308,3.96005803,143.06,143.01,0.79199431]
[1641799017707,3.96005803,143.06,143.01,15.56938678]
[1641799018308,3.96005803,143.06,143.02,0.79199431]
[1641799018508,12.04005803,143.06,143.02,0.79199431]
[1641799019108,3.96005803,143.05,143.01,0.79199431]
[1641799020309,3.96005803,143.05,143.02,2.41583459]
[1641799021010,3.96005803,143.06,143.03,0.79199431]
[1641799021213,3.96005803,143.06,143.0,14.77739247]
[1641799021411,11.64905803,143.06,143.0,14.77739247]
[1641799021810,11.64905803,143.06,142.95,27.96225096]
[1641799021811,11.64905803,143.06,142.98,14.77739247]
[1641799022011,7.689,143.06,142.98,14.77739247]
[1641799022510,3.96148502,143.05,142.99,0.792297]
[1641799022712,53.98048502,143.05,142.99,0.792297]
[1641799023412,3.96148502,143.04,142.99,0.792297]
[1641799023812,3.96148502,143.04,142.97,0.792297]
[1641799024015,31.62627502,143.04,142.97,0.792297]
[1641799024614,3.96148502,143.03,142.97,0.792297]
[1641799025518,3.96148502,143.03,142.94,21.76966601]
[1641799025717,6.99667658,143.01,142.94,14.77739247]
[1641799025917,27.66479,142.95,142.91,39.30874194]
[1641799026117,36.87479,142.95,142.91,4.194e-05]
[1641799026718,36.87479,142.95,142.85,6.99671852]
[1641799027119,3.96432042,142.94,142.86,0.79286408]
[1641799028018,27.66479,142.91,142.86,0.79286408]
[1641799030122,27.66479,142.88,142.86,0.79286408]
[1641799032626,34.46579,142.88,142.86,0.79286408]
[1641799040934,34.46579,142.88,142.8,1.749]
[1641799041134,34.46579,142.88,142.78,1.75]
[1641799041333,34.46579,142.88,142.77,59.6422288]
[1641799042235,3.96666514,142.87,142.78,0.79333303]
[1641799045635,3.96666514,142.87,142.79,7.35244098]
[1641799046236,3.96666514,142.87,142.8,0.79333303]
[1641799046637,3.96666514,142.87,142.8,28.45812303]
[1641799047336,3.96666514,142.87,142.81,0.79333303]
[1641799050743,27.66479,142.82,142.81,0.79333303]
[1641799050941,33.74779,142.82,142.78,10.4719492]
[1641799051341,33.74779,142.82,142.79,0.79333303]
[1641799052343,33.74779,142.82,142.75,0.79333303]
[1641799053647,33.74779,142.82,142.75,10.48502876]
[1641799054249,3.9669076,142.81,142.76,0.79333303]
[1641799054650,33.74779,142.82,142.76,0.79333303]
[1641799054846,33.74779,142.82,142.76,3.303e-05]
[1641799055246,3.96755937,142.81,142.76,3.303e-05]
[1641799056851,3.96755937,142.81,142.72,1.75]
[1641799057351,3.96755937,142.81,142.73,3.303e-05]
[1641799059754,3.96755937,142.81,142.72,14.7640343]
[1641799060153,3.96755937,142.81,142.73,3.303e-05]
[1641799060956,3.96755937,142.81,142.8,27.66479]
[1641799061157,3.96755937,142.81,142.78,27.66479]
[1641799061358,3.96755937,142.81,142.74,5.60440498]
[1641799061558,11.31955937,142.84,142.79,3.303e-05]
[1641799061858,3.96755937,142.83,142.74,3.303e-05]
[1641799062259,3.96755937,142.83,142.74,14.7640343]
[1641799062860,3.96755937,142.83,142.75,3.303e-05]
[1641799063058,31.63234937,142.83,142.75,3.303e-05]
[1641799063860,3.96755937,142.82,142.75,3.303e-05]
[1641799064158,3.96755937,142.82,142.75,2.40424883]
[1641799064658,3.96755937,142.82,142.75,3.303e-05]
[1641799065057,27.66479,142.8,142.75,3.303e-05]
[1641799065258,36.91279,142.8,142.76,3.303e-05]
[1641799065757,3.96755937,142.79,142.74,3.303e-05]
[1641799070163,3.96755937,142.79,142.74,14.7640343]
[1641799071064,3.96755937,142.79,142.75,3.303e-05]
[1641799073168,3.96755937,142.8,142.75,3.303e-05]
[1641799073573,3.96755937,142.83,142.75,3.303e-05]
[1641799073872,54.77005937,142.83,142.75,3.303e-05]
[1641799074172,54.77005937,142.83,142.76,42.42879127]
[1641799074373,3.96755937,142.82,142.76,42.42879127]
[1641799074672,13.33855937,142.82,142.76,42.42879127]
[1641799074872,13.33855937,142.82,142.77,2.40424883]
[1641799075173,3.96755937,142.81,142.78,3.303e-05]
[1641799075673,3.96755937,142.82,142.78,3.303e-05]
[1641799077976,27.66479,142.81,142.78,3.303e-05]
[1641799078777,3.96755937,142.8,142.75,3.303e-05]
[1641799080780,3.96755937,142.8,142.75,14.7640343]
[1641799081385,3.96755937,142.8,142.76,3.303e-05]
[1641799086494,3.96755937,142.8,142.76,14.7640343]
[1641799087092,3.96755937,142.8,142.77,3.303e-05]
[1641799087494,3.96755937,142.82,142.77,3.303e-05]
[1641799087896,3.96755937,142.82,142.78,14.76400127]
[1641799088095,27.66479,142.79,142.78,14.76400127]
[1641799088297,27.66479,142.79,142.78,1.27e-06]
[1641799088497,27.66479,142.79,142.75,39.19201276]
[1641799088897,3.96755937,142.78,142.76,0.79355361]
[1641799089196,3.96755937,142.78,142.73,0.79355361]
[1641799089596,3.96755937,142.78,142.73,10.49825085]
[1641799089999,3.96755937,142.78,142.74,27.66479]
[1641799090198,56.40370129,142.83,142.74,28.45834361]
[1641799090199,3.96755937,142.82,142.74,28.45834361]
[1641799090402,3.96755937,142.82,142.74,30.87738971]
[1641799090598,3.96755937,142.82,142.75,0.79355361]
[1641799091498,3.96755937,142.82,142.76,2.4190461]
[1641799091998,27.66479,142.8,142.77,0.79355361]
[1641799092598,3.96755937,142.79,142.77,0.79355361]
[1641799093599,3.96755937,142.79,142.78,2.4190461]
[1641799093800,3.96755937,142.82,142.78,2.4190461]
[1641799094202,3.96755937,142.82,142.79,0.79355361]
[1641799095505,3.96755937,142.82,142.77,0.79355361]
[1641799095907,3.96755937,142.82,142.8,2.41849874]
[1641799096506,3.96755937,142.83,142.81,0.79355361]
[1641799096805,3.96755937,142.83,142.81,5.361e-05]
[1641799097007,3.96755937,142.83,142.78,2.41849874]
[1641799097505,2.53031573,142.82,142.77,2.41849874]
[1641799097906,3.96755937,142.81,142.78,0.7934716]
[1641799100110,3.96755937,142.83,142.77,0.7934716]
[1641799100711,2.52982543,142.82,142.78,2.41811926]
[1641799101510,27.66479,142.84,142.79,0.7934716]
[1641799101911,3.96648316,142.83,142.79,0.7934716]
[1641799102411,3.96648316,142.83,142.8,2.41811926]
[1641799102913,3.96648316,142.83,142.81,0.7934716]
[1641799104719,3.96648316,142.83,142.77,0.7934716]
[1641799105619,3.96648316,142.83,142.78,2.4173895]
[1641799106020,3.96648316,142.83,142.79,0.7934716]
[1641799107025,3.96648316,142.83,142.8,2.4173895]
[1641799107425,3.96648316,142.83,142.81,0.7934716]
[1641799107826,3.96648316,142.84,142.81,0.7934716]
[1641799108126,27.66479,142.83,142.81,0.7934716]
[1641799108727,3.96648316,142.82,142.81,0.7934716]
[1641799109128,3.96648316,142.82,142.78,0.7934716]
[1641799109529,3.96648316,142.84,142.78,0.7934716]
[1641799110133,3.96648316,142.84,142.79,2.41772876]
[1641799110929,3.96648316,142.84,142.8,0.7934716]
[1641799111529,3.96648316,142.84,142.81,2.41772876]
[1641799112229,27.66479,142.83,142.82,0.7934716]
[1641799112631,31.63127316,142.83,142.82,0.7934716]
[1641799113630,31.63127316,142.83,142.78,0.7934716]
[1641799113932,3.96648316,142.82,142.78,0.7934716]
[1641799114232,3.96648316,142.82,142.79,2.41708751]
[1641799115131,3.96648316,142.82,142.8,0.7934716]
[1641799115733,3.96648316,142.82,142.81,2.41708751]
[1641799115932,3.96648316,142.85,142.81,2.41708751]
[1641799116233,27.66479,142.83,142.82,0.7934716]
[1641799116736,31.63127316,142.83,142.82,0.7934716]
[1641799117134,31.63127316,142.83,142.82,7.16e-05]
[1641799117534,31.63127316,142.83,142.77,9.74401683]
[1641799118135,30.19343449,142.83,142.77,2.41698144]
[1641799118335,27.66479,142.8,142.77,2.41698144]
[1641799118535,27.66479,142.8,142.78,0.79350248]
[1641799118835,33.26715435,142.8,142.72,39.19201276]
[1641799119134,3.96751238,142.79,142.73,14.84063443]
[1641799120036,3.96751238,142.79,142.74,0.79361219]
[1641799120237,27.66479,142.77,142.74,0.79361219]
[1641799120838,33.50179,142.77,142.74,0.79361219]
[1641799121137,3.96751238,142.76,142.74,0.79361219]
[1641799121739,33.50179,142.77,142.74,0.79361219]
[1641799122341,3.96806638,142.76,142.74,0.79361219]
[1641799123743,3.96806638,142.76,142.73,0.79361219]
[1641799127946,27.66479,142.77,142.73,0.79361219]
[1641799128647,27.66479,142.77,142.73,15.63424662]
[1641799129347,27.66479,142.77,142.74,0.79361219]
[1641799129747,5.60290148,142.79,142.74,0.79361219]
[1641799130350,27.66479,142.77,142.74,0.79361219]
[1641799131449,5.60290148,142.79,142.74,0.79361219]
[1641799131951,3.96782829,142.78,142.74,0.79361219]
[1641799132752,27.66479,142.77,142.74,0.79361219]
[1641799134156,3.96801986,142.76,142.74,0.79361219]
[1641799135464,3.96801986,142.76,142.73,0.79361219]
[1641799136367,3.96801986,142.76,142.72,0.79361219]
[1641799140672,3.96801986,142.77,142.72,0.79361219]
[1641799140874,3.96801986,142.77,142.72,9.82961219]
[1641799141276,3.96801986,142.77,142.72,24.67024662]
[1641799141777,3.96801986,142.77,142.73,0.79361219]
[1641799142777,27.66479,142.76,142.73,0.79361219]
[1641799142978,35.95079,142.76,142.73,0.79361219]
[1641799143779,35.95079,142.76,142.72,0.79361219]
[1641799143977,8.286,142.76,142.72,0.79361219]
[1641799144178,50.7916,142.78,142.72,0.79361219]
[1641799144579,3.96810664,142.77,142.72,0.79361219]
[1641799144780,11.59810664,142.77,142.72,15.63424662]
[1641799144979,27.66479,142.76,142.72,15.63424662]
[1641799145379,27.66479,142.76,142.73,0.79361219]
[1641799145879,7.63,142.77,142.73,0.79361219]
[1641799146281,3.96843014,142.76,142.73,0.79361219]
[1641799146479,3.96843014,142.76,142.72,14.84063443]
[1641799146680,3.96843014,142.76,142.71,9.74457396]
[1641799146881,27.66479,142.72,142.71,9.74457396]
[1641799147080,35.86579,142.72,142.71,9.74457396]
[1641799147481,35.86579,142.72,142.65,53.5256]
[1641799147683,39.83527646,142.72,142.71,0.79389729]
[1641799148084,39.83527646,142.72,142.69,0.79389729]
[1641799148583,3.96948646,142.71,142.66,10.53624643]
[1641799148985,27.66479,142.69,142.67,0.79389729]
[1641799149784,3.97018691,142.68,142.67,0.79389729]
[1641799150485,13.34518691,142.68,142.67,0.79389729]
[1641799150785,13.34518691,142.68,142.64,9.74234914]
[1641799150985,27.66479,142.65,142.64,9.74234914]
[1641799151188,34.04279,142.65,142.61,39.19201276]
[1641799151688,34.04279,142.65,142.6,53.1687]
[1641799152089,34.04279,142.65,142.62,0.79413406]
[1641799152489,34.04279,142.65,142.61,0.79413406]
[1641799153389,6.378,142.65,142.61,0.79413406]
[1641799153590,56.0438,142.67,142.61,0.79413406]
[1641799153992,3.97075812,142.66,142.61,8.05613406]
[1641799154292,3.97075812,142.66,142.62,0.79413406]
[1641799155192,3.97075812,142.67,142.61,0.79413406]
[1641799158200,3.97075812,142.67,142.59,0.79413406]
[1641799158999,27.66479,142.65,142.59,0.79413406]
[1641799159201,27.66479,142.65,142.6,2.40375743]
[1641799159900,27.66479,142.65,142.61,0.79413406]
[1641799160102,34.6783964,142.65,142.55,40.94401276]
[1641799160303,60.413363,142.64,142.55,39.19201276]
[1641799160501,64.38534344,142.64,142.55,39.19201276]
[1641799160700,60.413363,142.64,142.55,39.19201276]
[1641799161103,27.66479,142.6,142.55,39.19201276]
[1641799161402,27.66479,142.6,142.53,80.24729]
[1641799161403,35.51879,142.6,142.56,0.79444361]
[1641799161601,3.97221806,142.59,142.56,0.79444361]
[1641799162102,3.97221806,142.59,142.52,0.79444361]
[1641799162602,3.97221806,142.59,142.52,7.8065746]
[1641799162801,3.97221806,142.59,142.53,7.36446907]
[1641799163001,27.66479,142.62,142.55,27.66479]
[1641799163200,27.66479,142.62,142.54,50.5951]
[1641799163401,3.97221806,142.61,142.56,0.79444361]
[1641799163800,3.97221806,142.61,142.55,0.79444361]
[1641799164201,27.66479,142.62,142.55,0.79444361]
[1641799164903,3.9719161,142.61,142.55,0.79444361]
[1641799165908,3.9719161,142.61,142.55,6.40643637]
[1641799166107,3.9719161,142.61,142.55,8.15843637]
[1641799166309,111.9581,142.64,142.56,0.79444361]
[1641799166709,3.97245343,142.63,142.56,0.79444361]
[1641799167108,27.66479,142.58,142.53,0.79444361]
[1641799167711,3.97245343,142.57,142.53,0.79444361]
[1641799168413,27.66479,142.58,142.53,0.79444361]
[1641799173520,27.66479,142.6,142.53,0.79444361]
[1641799173720,27.66479,142.6,142.53,2.54644361]
[1641799174422,3.97225245,142.59,142.54,0.79444361]
[1641799175422,3.97225245,142.59,142.52,59.66722217]
[1641799175423,3.97225245,142.59,142.53,0.79444361]
[1641799175620,137.76359,142.64,142.55,0.79444361]
[1641799176221,3.97166714,142.63,142.55,0.79444361]
[1641799177024,3.97166714,142.63,142.54,0.79444361]
[1641799177424,3.97166714,142.63,142.55,27.66479]
[1641799177824,3.97166714,142.63,142.55,42.44970917]
[1641799178024,3.97166714,142.63,142.56,0.79444361]
[1641799178324,3.97166714,142.63,142.56,25.280793]
[1641799179026,3.97166714,142.63,142.57,0.79444361]
[1641799183931,3.97166714,142.63,142.57,15.57936278]
[1641799184132,3.97166714,142.63,142.57,25.30519179]
[1641799184733,3.97166714,142.63,142.58,0.79444361]
[1641799185735,3.97166714,142.63,142.57,0.79444361]
[1641799185936,10.17466714,142.63,142.57,0.79444361]
[1641799186536,3.97166714,142.62,142.57,0.79444361]
[1641799186737,3.97166714,142.62,142.57,25.31099229]
[1641799187440,3.97166714,142.62,142.58,0.79444361]
[1641799187939,3.97166714,142.63,142.58,0.79444361]
[1641799189841,3.97166714,142.63,142.58,15.57936278]
[1641799190843,3.97166714,142.63,142.59,0.79444361]
[1641799196849,3.97166714,142.63,142.59,25.32703154]
[1641799197049,58.88646714,142.66,142.59,25.32703154]
[1641799197252,58.88646714,142.66,142.59,31.69103154]
[1641799197451,3.97166714,142.65,142.6,0.79444361]
[1641799197650,3.97166714,142.65,142.6,15.57936278]
[1641799198354,3.97166714,142.65,142.61,0.79444361]
[1641799198754,3.97166714,142.65,142.6,0.79444361]
[1641799199155,3.97166714,142.65,142.6,15.57936278]
[1641799199854,3.97166714,142.65,142.61,0.79444361]
[1641799200954,3.97166714,142.65,142.62,2.41785579]
[1641799201356,3.97166714,142.65,142.63,0.79444361]
[1641799202356,3.97166714,142.65,142.64,2.41785579]
[1641799202757,3.97166714,142.65,142.64,3.2122994]
[1641799203057,3.97166714,142.65,142.64,0.79444361]
[1641799203265,3.97166714,142.66,142.64,0.79444361]
[1641799203658,3.97166714,142.66,142.61,0.79444361]
[1641799204660,3.97166714,142.66,142.65,2.41934314]
[1641799205263,22.69591917,142.71,142.65,3.21378675]
[1641799205661,7.911,142.71,142.65,0.79444361]
[1641799206363,7.911,142.71,142.67,27.66479]
[1641799206563,3.97001207,142.7,142.65,0.79444361]
[1641799206865,3.97001207,142.7,142.66,2.41934314]
[1641799207262,3.97001207,142.72,142.66,2.41934314]
[1641799207665,3.97001207,142.72,142.67,0.79444361]
[1641799208464,3.97001207,142.72,142.68,2.41934314]
[1641799209065,3.97001207,142.72,142.69,0.79444361]
[1641799210477,3.97001207,142.72,142.67,0.79444361]
[1641799212576,3.97001207,142.72,142.67,28.45923361]
[1641799213378,3.97001207,142.72,142.68,0.79444361]
[1641799214278,3.97001207,142.72,142.67,0.79444361]
[1641799216183,3.97001207,142.72,142.68,1.75]
[1641799216383,3.97001207,142.72,142.69,5.60646139]
[1641799216586,3.97001207,142.72,142.69,33.27125139]
[1641799216785,3.97001207,142.76,142.69,28.45923361]
[1641799217186,3.97001207,142.76,142.7,3.2036805]
[1641799217685,3.97001207,142.77,142.71,0.79444361]
[1641799218585,3.97001207,142.77,142.69,27.66479]
[1641799218586,3.97001207,142.77,142.7,0.79444361]
[1641799227309,11.78901207,142.77,142.7,0.79444361]
[1641799227808,3.97001207,142.76,142.7,0.79444361]
[1641799228508,9.57413819,142.76,142.7,0.79444361]
[1641799228709,33.20071681,142.76,142.66,14.78491917]
[1641799229008,27.66479,142.74,142.66,27.66479]
[1641799229208,87.37769,142.74,142.67,0.79410853]
[1641799229508,3.97001207,142.73,142.67,0.79410853]
[1641799230010,6.49693343,142.73,142.67,0.79410853]
[1641799230418,3.97001207,142.72,142.67,0.79410853]
[1641799231812,3.97001207,142.73,142.67,0.79410853]
[1641799232912,3.97001207,142.73,142.68,2.41389039]
[1641799233813,3.97001207,142.73,142.69,0.79410853]
[1641799235315,3.97001207,142.73,142.67,0.79410853]
[1641799235917,3.97001207,142.73,142.68,2.41559357]
[1641799236315,3.97001207,142.73,142.69,0.79410853]
[1641799238118,3.97001207,142.73,142.67,0.79410853]
[1641799238317,3.97001207,142.73,142.68,7.35674344]
[1641799238818,3.97001207,142.73,142.69,14.78491917]
[1641799239019,3.97001207,142.75,142.7,1.75]
[1641799239219,3.97001207,142.75,142.72,27.66479]
[1641799239422,3.97001207,142.77,142.71,0.79410853]
[1641799239629,8.412,142.75,142.71,0.79410853]
[1641799240019,8.412,142.75,142.71,3.20908014]
[1641799240520,3.97001207,142.74,142.71,2.41497161]
[1641799241223,3.97001207,142.74,142.69,14.78491917]
[1641799241519,27.66479,142.73,142.66,42.44970917]
[1641799241721,27.66479,142.73,142.7,0.7939951]
[1641799242421,3.97001207,142.72,142.67,0.7939951]
[1641799243223,3.97001207,142.72,142.68,2.41516963]
[1641799243725,3.97001207,142.72,142.69,0.7939951]
[1641799245132,3.97001207,142.72,142.67,0.7939951]
[1641799245632,3.97001207,142.73,142.67,0.7939951]
[1641799246234,3.97001207,142.73,142.68,2.41521582]
[1641799247035,3.97001207,142.73,142.69,0.7939951]
[1641799247635,27.66479,142.7,142.69,0.7939951]
[1641799247835,36.09879,142.7,142.69,0.7939951]
[1641799248337,40.06880207,142.7,142.65,0.7939951]
[1641799248937,3.97001207,142.69,142.65,0.7939951]
[1641799249638,11.59601207,142.69,142.66,2.41545718]
[1641799250238,3.97001207,142.68,142.67,0.7939951]
[1641799251140,3.97001207,142.68,142.65,0.7939951]
[1641799251740,3.97001207,142.68,142.66,2.41520777]
[1641799252539,3.97001207,142.68,142.67,0.7939951]
[1641799252940,3.97001207,142.68,142.62,14.78491917]
[1641799253342,5.60742447,142.67,142.63,0.79430432]
[1641799253743,27.66479,142.64,142.61,2.4151734]
[1641799253946,36.40179,142.64,142.61,2.4151734]
[1641799254145,3.97001207,142.63,142.61,2.4151734]
[1641799254647,3.97001207,142.63,142.62,0.79448189]
[1641799255947,3.97001207,142.63,142.59,0.79448189]
[1641799256952,3.97001207,142.63,142.57,0.79448189]
[1641799257150,3.97001207,142.63,142.6,2.41350636]
[1641799257650,3.97001207,142.63,142.61,0.79448189]
[1641799258352,3.97001207,142.63,142.59,0.79448189]
[1641799259250,3.97001207,142.63,142.58,0.79448189]
[1641799260354,3.97001207,142.63,142.57,0.79448189]
[1641799260751,3.97001207,142.63,142.56,0.79448189]
[1641799262655,3.97001207,142.64,142.56,0.79448189]
[1641799263057,3.97001207,142.64,142.57,2.40961403]
[1641799263257,9.57869188,142.64,142.57,2.40961403]
[1641799263459,9.57869188,142.64,142.58,0.79448189]
[1641799263858,27.66479,142.6,142.58,0.79448189]
[1641799264562,3.97001207,142.59,142.56,0.79448189]
[1641799264962,3.97001207,142.59,142.55,53.0684]
[1641799265262,35.34579,142.6,142.55,53.0684]
[1641799265663,3.97270983,142.59,142.55,53.0684]
[1641799265865,3.97270983,142.59,142.56,2.40673311]
[1641799266265,7.681,142.6,142.56,2.40673311]
[1641799275681,5.60870306,142.64,142.56,2.40673311]
[1641799276182,27.66479,142.62,142.56,2.40673311]
[1641799276583,3.97198592,142.61,142.56,2.40673311]
[1641799277482,9.90798592,142.61,142.56,2.40673311]
[1641799277881,3.97198592,142.6,142.56,2.40673311]
[1641799278583,3.97198592,142.6,142.54,14.78491917]
[1641799279584,3.97198592,142.6,142.54,26.92841725]
[1641799280186,3.97198592,142.6,142.55,0.7944717]